[Event "*** Titled Tuesday Blitz"]
[Site "Chess.com"]
[Date "2020.04.21"]
[Round "1"]
[White "whogeeyao"]
[Black "Incognito_Knight"]
[Result "0-1"]
[WhiteElo "2379"]
[BlackElo "2723"]
[TimeControl "180+1"]
[EndTime "10:04:41 PDT"]
[Termination "Incognito_Knight won by resignation"]

1. e4 {[%clk 0:03:00.9]} 1... c5 {[%clk 0:02:58.6]} 2. Nf3 {[%clk 0:03:00.7]}
2... e6 {[%clk 0:02:59]} 3. d4 {[%clk 0:02:57.3]} 3... cxd4 {[%clk 0:02:59.9]}
4. Nxd4 {[%clk 0:02:57.6]} 4... a6 {[%clk 0:03:00.5]} 5. Bd3 {[%clk 0:02:57.4]}
5... Bc5 {[%clk 0:03:00.1]} 6. Nb3 {[%clk 0:02:57.1]} 6... Ba7 {[%clk
0:03:00.4]} 7. O-O {[%clk 0:02:56.7]} 7... Ne7 {[%clk 0:02:56.4]} 8. c4 {[%clk
0:02:54.8]} 8... Nbc6 {[%clk 0:02:56.2]} 9. Qe2 {[%clk 0:02:51.2]} 9... O-O
{[%clk 0:02:56]} 10. Nc3 {[%clk 0:02:49.5]} 10... d6 {[%clk 0:02:55.7]} 11. Be3
{[%clk 0:02:48.5]} 11... Bxe3 {[%clk 0:02:55]} 12. Qxe3 {[%clk 0:02:48.3]} 12...
e5 {[%clk 0:02:54.6]} 13. Rad1 {[%clk 0:02:47]} 13... b6 {[%clk 0:02:47.2]} 14.
Nd2 {[%clk 0:02:41.3]} 14... Nd4 {[%clk 0:02:43]} 15. b3 {[%clk 0:02:40]} 15...
Bg4 {[%clk 0:02:27.5]} 16. f3 {[%clk 0:02:34.3]} 16... Be6 {[%clk 0:02:27.3]}
17. Ne2 {[%clk 0:02:27]} 17... Nec6 {[%clk 0:02:25.6]} 18. Rfe1 {[%clk
0:02:25.5]} 18... b5 {[%clk 0:02:21.6]} 19. Rc1 {[%clk 0:02:11.5]} 19... Qb6
{[%clk 0:02:15.8]} 20. Qf2 {[%clk 0:02:06.1]} 20... Rfc8 {[%clk 0:02:05.2]} 21.
Nc3 {[%clk 0:02:01.3]} 21... Nb4 {[%clk 0:01:49.9]} 22. Bf1 {[%clk 0:01:51.2]}
22... Qa5 {[%clk 0:01:38.7]} 23. a4 {[%clk 0:01:04.8]} 23... Nbc2 {[%clk
0:01:33.5]} 0-1

[Event "*** Titled Tuesday Blitz"]
[Site "Chess.com"]
[Date "2020.04.21"]
[Round "1"]
[White "BilodeauA"]
[Black "StockholmMissile"]
[Result "1-0"]
[WhiteElo "2860"]
[BlackElo "2449"]
[TimeControl "180+1"]
[EndTime "10:04:44 PDT"]
[Termination "BilodeauA won by resignation"]

1. e4 {[%clk 0:02:54.7]} 1... e5 {[%clk 0:02:59.2]} 2. Nf3 {[%clk 0:02:55.2]}
2... Nc6 {[%clk 0:02:58.6]} 3. Bb5 {[%clk 0:02:55]} 3... a6 {[%clk 0:02:58.8]}
4. Ba4 {[%clk 0:02:55.1]} 4... Nf6 {[%clk 0:02:58.4]} 5. O-O {[%clk 0:02:55.8]}
5... Be7 {[%clk 0:02:56.8]} 6. Re1 {[%clk 0:02:56]} 6... b5 {[%clk 0:02:55.7]}
7. Bb3 {[%clk 0:02:56.2]} 7... d6 {[%clk 0:02:55.6]} 8. c3 {[%clk 0:02:56.3]}
8... O-O {[%clk 0:02:54.8]} 9. h3 {[%clk 0:02:57]} 9... Nb8 {[%clk 0:02:53]} 10.
d4 {[%clk 0:02:57.1]} 10... Nbd7 {[%clk 0:02:52.1]} 11. c4 {[%clk 0:02:56.6]}
11... c6 {[%clk 0:02:49.5]} 12. Nc3 {[%clk 0:02:57]} 12... h6 {[%clk 0:02:45.1]}
13. a3 {[%clk 0:02:57.4]} 13... Re8 {[%clk 0:02:44.5]} 14. Be3 {[%clk
0:02:57.3]} 14... Bf8 {[%clk 0:02:44.3]} 15. Qc2 {[%clk 0:02:52.7]} 15... Bb7
{[%clk 0:02:43.8]} 16. Rad1 {[%clk 0:02:41]} 16... Qc7 {[%clk 0:02:40.5]} 17.
Ba2 {[%clk 0:02:23.6]} 17... Rac8 {[%clk 0:02:32.6]} 18. b4 {[%clk 0:02:21.5]}
18... bxc4 {[%clk 0:02:16.6]} 19. dxe5 {[%clk 0:02:14.7]} 19... dxe5 {[%clk
0:01:54.6]} 20. Bxc4 {[%clk 0:02:10.3]} 20... Red8 {[%clk 0:01:34.8]} 21. Qa2
{[%clk 0:02:06.1]} 21... Nb8 {[%clk 0:01:27.7]} 22. Na4 {[%clk 0:02:06.2]} 22...
Qe7 {[%clk 0:01:19.8]} 23. Nc5 {[%clk 0:01:55.6]} 23... Ne8 {[%clk 0:01:01.3]}
24. Bxf7+ {[%clk 0:01:48.8]} 24... Qxf7 {[%clk 0:00:59.2]} 25. Qxf7+ {[%clk
0:01:49.7]} 25... Kxf7 {[%clk 0:00:59.7]} 26. Nxb7 {[%clk 0:01:50.6]} 26... Rxd1
{[%clk 0:00:58.1]} 27. Rxd1 {[%clk 0:01:51.5]} 27... Ke6 {[%clk 0:00:54.7]} 28.
Bc5 {[%clk 0:01:50.8]} 28... Nf6 {[%clk 0:00:48.6]} 29. Nd8+ {[%clk 0:01:48.9]}
1-0

[Event "*** Titled Tuesday Blitz"]
[Site "Chess.com"]
[Date "2020.04.21"]
[Round "1"]
[White "Oleksandr_Bortnyk"]
[Black "boasovietica"]
[Result "1-0"]
[WhiteElo "3027"]
[BlackElo "2474"]
[TimeControl "180+1"]
[EndTime "10:04:46 PDT"]
[Termination "Oleksandr_Bortnyk won by resignation"]

1. e4 {[%clk 0:03:00.2]} 1... e5 {[%clk 0:02:59.2]} 2. Bc4 {[%clk 0:02:59.4]}
2... Nf6 {[%clk 0:02:58.7]} 3. d3 {[%clk 0:02:59.1]} 3... Nc6 {[%clk 0:02:58.3]}
4. Nc3 {[%clk 0:02:58.9]} 4... Bc5 {[%clk 0:02:55]} 5. Be3 {[%clk 0:02:58.9]}
5... Bb4 {[%clk 0:02:50.7]} 6. Ne2 {[%clk 0:02:54.3]} 6... d5 {[%clk 0:02:48.7]}
7. exd5 {[%clk 0:02:52.2]} 7... Nxd5 {[%clk 0:02:49.4]} 8. O-O {[%clk
0:02:51.4]} 8... Nxe3 {[%clk 0:02:46.2]} 9. fxe3 {[%clk 0:02:52.3]} 9... O-O
{[%clk 0:02:46.2]} 10. Ng3 {[%clk 0:02:52.4]} 10... Bc5 {[%clk 0:02:19.3]} 11.
Qf3 {[%clk 0:02:50.3]} 11... Qe7 {[%clk 0:01:56.4]} 12. Nd5 {[%clk 0:02:42.5]}
12... Qd8 {[%clk 0:01:55.9]} 13. Ne4 {[%clk 0:02:17.7]} 13... Be7 {[%clk
0:01:51.7]} 14. Qh5 {[%clk 0:01:45.2]} 14... Be6 {[%clk 0:01:42.4]} 15. Nxe7+
{[%clk 0:01:44.6]} 15... Qxe7 {[%clk 0:01:41]} 16. Ng5 {[%clk 0:01:44.6]} 16...
h6 {[%clk 0:01:34.3]} 17. Nxe6 {[%clk 0:01:41.7]} 17... fxe6 {[%clk 0:01:33]}
18. Qg6 {[%clk 0:01:42.2]} 18... Qc5 {[%clk 0:01:16.1]} 19. Bxe6+ {[%clk
0:01:37.6]} 19... Kh8 {[%clk 0:01:16]} 20. Bf5 {[%clk 0:01:38.2]} 20... Qxe3+
{[%clk 0:01:10]} 21. Kh1 {[%clk 0:01:38.3]} 21... Rxf5 {[%clk 0:01:01.3]} 22.
Qxf5 {[%clk 0:01:38.7]} 22... Nd4 {[%clk 0:00:53.4]} 23. Qf2 {[%clk 0:01:38.3]}
23... Qg5 {[%clk 0:00:52.6]} 24. Rae1 {[%clk 0:01:37.3]} 24... Nc6 {[%clk
0:00:50.2]} 25. Qf7 {[%clk 0:01:34.5]} 1-0

[Event "*** Titled Tuesday Blitz"]
[Site "Chess.com"]
[Date "2020.04.21"]
[Round "1"]
[White "NTBT_DHS"]
[Black "imdarealist"]
[Result "1-0"]
[WhiteElo "2625"]
[BlackElo "2298"]
[TimeControl "180+1"]
[EndTime "10:04:56 PDT"]
[Termination "NTBT_DHS won by checkmate"]

1. d4 {[%clk 0:02:52.6]} 1... d5 {[%clk 0:02:58.3]} 2. c4 {[%clk 0:02:52.8]}
2... e6 {[%clk 0:02:58.5]} 3. Nf3 {[%clk 0:02:51.5]} 3... Nf6 {[%clk 0:02:58.6]}
4. g3 {[%clk 0:02:52]} 4... Bb4+ {[%clk 0:02:47.2]} 5. Bd2 {[%clk 0:02:50]} 5...
Be7 {[%clk 0:02:47.7]} 6. Bg2 {[%clk 0:02:49.9]} 6... O-O {[%clk 0:02:48.4]} 7.
O-O {[%clk 0:02:49.6]} 7... c6 {[%clk 0:02:33.7]} 8. Qc2 {[%clk 0:02:49.2]} 8...
a6 {[%clk 0:02:24.9]} 9. Rc1 {[%clk 0:02:47.3]} 9... Nbd7 {[%clk 0:02:20.8]} 10.
a4 {[%clk 0:02:43.3]} 10... Ne4 {[%clk 0:02:16]} 11. Nc3 {[%clk 0:02:42]} 11...
Ndf6 {[%clk 0:02:11.4]} 12. c5 {[%clk 0:02:31]} 12... Nxc3 {[%clk 0:02:05.1]}
13. Bxc3 {[%clk 0:02:31.9]} 13... Ne4 {[%clk 0:02:05.1]} 14. Be1 {[%clk
0:02:25.2]} 14... f5 {[%clk 0:02:03.4]} 15. e3 {[%clk 0:02:16.7]} 15... Bf6
{[%clk 0:02:03.4]} 16. b4 {[%clk 0:02:14.5]} 16... Bd7 {[%clk 0:02:02.2]} 17.
Rab1 {[%clk 0:02:11.8]} 17... Qe8 {[%clk 0:01:54.4]} 18. h4 {[%clk 0:02:06.9]}
18... h6 {[%clk 0:01:51.9]} 19. Ne5 {[%clk 0:02:05.7]} 19... Bxe5 {[%clk
0:01:48.6]} 20. dxe5 {[%clk 0:02:06.6]} 20... g5 {[%clk 0:01:47.7]} 21. f3
{[%clk 0:02:04.8]} 21... gxh4 {[%clk 0:01:42.5]} 22. fxe4 {[%clk 0:02:04.4]}
22... fxe4 {[%clk 0:01:40.7]} 23. gxh4 {[%clk 0:02:01.5]} 23... Kh8 {[%clk
0:01:31.8]} 24. Bg3 {[%clk 0:01:59.9]} 24... Rg8 {[%clk 0:01:31.3]} 25. Kh2
{[%clk 0:01:53.6]} 25... Qg6 {[%clk 0:01:30.2]} 26. Qf2 {[%clk 0:01:50.6]} 26...
Raf8 {[%clk 0:01:23.1]} 27. Bf4 {[%clk 0:01:50.8]} 27... d4 {[%clk 0:01:17]} 28.
Rg1 {[%clk 0:01:42.7]} 28... dxe3 {[%clk 0:01:12.1]} 29. Qxe3 {[%clk 0:01:43.6]}
29... Qg4 {[%clk 0:01:12.4]} 30. Bg3 {[%clk 0:01:41.7]} 30... Be8 {[%clk
0:00:54.3]} 31. Qxh6# {[%clk 0:01:39.5]} 1-0

[Event "*** Titled Tuesday Blitz"]
[Site "Chess.com"]
[Date "2020.04.21"]
[Round "1"]
[White "D0wnpour"]
[Black "Chessalary"]
[Result "1-0"]
[WhiteElo "2602"]
[BlackElo "2258"]
[TimeControl "180+1"]
[EndTime "10:05:01 PDT"]
[Termination "D0wnpour won by resignation"]

1. d4 {[%clk 0:03:00.9]} 1... Nf6 {[%clk 0:02:59.2]} 2. c4 {[%clk 0:03:01]} 2...
g6 {[%clk 0:02:59.5]} 3. Nc3 {[%clk 0:03:01.6]} 3... Bg7 {[%clk 0:02:59.4]} 4.
e4 {[%clk 0:03:01.7]} 4... d6 {[%clk 0:02:59.6]} 5. h3 {[%clk 0:03:02.2]} 5...
O-O {[%clk 0:02:58.6]} 6. Nf3 {[%clk 0:03:02.6]} 6... Nbd7 {[%clk 0:02:58.3]} 7.
Be3 {[%clk 0:03:01.7]} 7... e5 {[%clk 0:02:58.2]} 8. d5 {[%clk 0:03:02.3]} 8...
Nc5 {[%clk 0:02:55.5]} 9. Nd2 {[%clk 0:02:50.2]} 9... a5 {[%clk 0:02:54.6]} 10.
Qc2 {[%clk 0:02:47.3]} 10... Ne8 {[%clk 0:02:54.2]} 11. g4 {[%clk 0:02:43.7]}
11... f5 {[%clk 0:02:53.5]} 12. gxf5 {[%clk 0:02:44.6]} 12... gxf5 {[%clk
0:02:54.1]} 13. Bxc5 {[%clk 0:02:25.5]} 13... dxc5 {[%clk 0:02:52.5]} 14. exf5
{[%clk 0:02:26.2]} 14... Bxf5 {[%clk 0:02:52.6]} 15. Bd3 {[%clk 0:02:26.8]}
15... Nd6 {[%clk 0:02:45.5]} 16. O-O-O {[%clk 0:02:10.6]} 16... Kh8 {[%clk
0:02:41.5]} 17. Nde4 {[%clk 0:02:01.3]} 17... Bxe4 {[%clk 0:02:13]} 18. Nxe4
{[%clk 0:02:01.2]} 18... b6 {[%clk 0:02:13.1]} 19. h4 {[%clk 0:01:58.7]} 19...
h6 {[%clk 0:02:09]} 20. Rdg1 {[%clk 0:01:47.8]} 20... Rg8 {[%clk 0:02:06.9]} 21.
Rg6 {[%clk 0:01:44]} 21... Bf8 {[%clk 0:01:03.2]} 22. Rxg8+ {[%clk 0:01:24.3]}
22... Kxg8 {[%clk 0:01:03.7]} 23. Qe2 {[%clk 0:01:24.9]} 23... Nxe4 {[%clk
0:01:00.4]} 24. Qxe4 {[%clk 0:01:23.5]} 24... Qe7 {[%clk 0:00:49.6]} 25. d6
{[%clk 0:01:23.4]} 1-0

[Event "*** Titled Tuesday Blitz"]
[Site "Chess.com"]
[Date "2020.04.21"]
[Round "1"]
[White "Ammaralsedrani"]
[Black "Firegrizzly"]
[Result "0-1"]
[WhiteElo "2347"]
[BlackElo "2674"]
[TimeControl "180+1"]
[EndTime "10:05:02 PDT"]
[Termination "Firegrizzly won by resignation"]

1. d4 {[%clk 0:02:59.4]} 1... e6 {[%clk 0:03:00.9]} 2. Nf3 {[%clk 0:02:57.5]}
2... d5 {[%clk 0:03:00.8]} 3. Bf4 {[%clk 0:02:54.6]} 3... Nf6 {[%clk 0:02:59.7]}
4. e3 {[%clk 0:02:53.8]} 4... Bd6 {[%clk 0:02:57.4]} 5. c3 {[%clk 0:02:52.4]}
5... O-O {[%clk 0:02:56.5]} 6. Nbd2 {[%clk 0:02:51.8]} 6... b6 {[%clk
0:02:56.3]} 7. Bd3 {[%clk 0:02:51.2]} 7... c5 {[%clk 0:02:56.3]} 8. O-O {[%clk
0:02:49.6]} 8... Bb7 {[%clk 0:02:55.2]} 9. Ne5 {[%clk 0:02:48.7]} 9... Nc6
{[%clk 0:02:50.5]} 10. Bg3 {[%clk 0:02:47.9]} 10... Ne7 {[%clk 0:02:49.7]} 11.
f4 {[%clk 0:02:47.1]} 11... Nf5 {[%clk 0:02:48.6]} 12. Qf3 {[%clk 0:02:45.5]}
12... Ne8 {[%clk 0:02:43.8]} 13. Bxf5 {[%clk 0:02:30.3]} 13... exf5 {[%clk
0:02:42.6]} 14. Rfe1 {[%clk 0:02:28.4]} 14... Nf6 {[%clk 0:02:41.6]} 15. Bh4
{[%clk 0:02:26.4]} 15... Be7 {[%clk 0:02:40.4]} 16. Bxf6 {[%clk 0:02:25.1]}
16... Bxf6 {[%clk 0:02:38.9]} 17. Rad1 {[%clk 0:02:22.8]} 17... g6 {[%clk
0:02:38]} 18. Nf1 {[%clk 0:02:19.1]} 18... Qc7 {[%clk 0:02:36.3]} 19. Ng3 {[%clk
0:02:18.9]} 19... Bg7 {[%clk 0:02:34.7]} 20. Rd2 {[%clk 0:02:15.3]} 20... c4
{[%clk 0:02:33.7]} 21. Nxf5 {[%clk 0:01:55]} 21... gxf5 {[%clk 0:02:32.1]} 22.
Qh3 {[%clk 0:01:55.7]} 22... Bc8 {[%clk 0:02:28.2]} 23. Rf2 {[%clk 0:01:54.2]}
23... f6 {[%clk 0:02:27]} 24. Nf3 {[%clk 0:01:53.2]} 24... Re8 {[%clk
0:02:25.9]} 25. Nh4 {[%clk 0:01:51.1]} 25... Bd7 {[%clk 0:02:20.3]} 26. Rf3
{[%clk 0:01:49]} 26... Re7 {[%clk 0:02:19.6]} 27. Rg3 {[%clk 0:01:46.5]} 27...
Rae8 {[%clk 0:02:19.5]} 28. Kf2 {[%clk 0:01:46.2]} 28... b5 {[%clk 0:02:17.4]}
29. Nxf5 {[%clk 0:01:44.7]} 29... Bxf5 {[%clk 0:02:16.3]} 30. Qxf5 {[%clk
0:01:43.7]} 30... Qd7 {[%clk 0:02:15.9]} 31. Qh5 {[%clk 0:01:37.9]} 31... a5
{[%clk 0:02:15.2]} 32. Rh3 {[%clk 0:01:33.4]} 32... Bf8 {[%clk 0:02:03.4]} 33.
Rg3+ {[%clk 0:01:27.3]} 33... Rg7 {[%clk 0:02:02.5]} 34. Rxg7+ {[%clk
0:01:26.1]} 34... Bxg7 {[%clk 0:02:02.2]} 35. g4 {[%clk 0:01:25.3]} 35... b4
{[%clk 0:02:01.3]} 36. g5 {[%clk 0:01:24.3]} 36... Qf7 {[%clk 0:02:00.3]} 37. g6
{[%clk 0:01:18.2]} 37... hxg6 {[%clk 0:01:58]} 38. Qg4 {[%clk 0:01:17.6]} 38...
f5 {[%clk 0:01:58]} 39. Qf3 {[%clk 0:01:15]} 39... Bf6 {[%clk 0:01:56.6]} 40.
Rg1 {[%clk 0:01:14.2]} 40... Kg7 {[%clk 0:01:56.5]} 41. Qh3 {[%clk 0:01:13.2]}
41... Rh8 {[%clk 0:01:55.7]} 42. Qxf5 {[%clk 0:01:11.1]} 42... Bh4+ {[%clk
0:01:55.4]} 0-1

[Event "*** Titled Tuesday Blitz"]
[Site "Chess.com"]
[Date "2020.04.21"]
[Round "1"]
[White "LuisFSiles"]
[Black "crazy_machine"]
[Result "0-1"]
[WhiteElo "2269"]
[BlackElo "2607"]
[TimeControl "180+1"]
[EndTime "10:05:03 PDT"]
[Termination "crazy_machine won by resignation"]

1. e4 {[%clk 0:03:00.3]} 1... d6 {[%clk 0:02:59.8]} 2. Nc3 {[%clk 0:02:58.9]}
2... Nf6 {[%clk 0:03:00.3]} 3. f4 {[%clk 0:02:58.8]} 3... g6 {[%clk 0:03:00.7]}
4. Nf3 {[%clk 0:02:58.9]} 4... Bg7 {[%clk 0:03:01.1]} 5. Bc4 {[%clk 0:02:59]}
5... O-O {[%clk 0:03:01.4]} 6. d3 {[%clk 0:02:59.4]} 6... c6 {[%clk 0:03:01.8]}
7. Bb3 {[%clk 0:02:54.4]} 7... Nbd7 {[%clk 0:03:01.2]} 8. O-O {[%clk 0:02:52.3]}
8... Nc5 {[%clk 0:03:01.1]} 9. Kh1 {[%clk 0:02:52.2]} 9... d5 {[%clk 0:02:56.5]}
10. e5 {[%clk 0:02:47.6]} 10... Ng4 {[%clk 0:02:56.8]} 11. h3 {[%clk 0:02:31.7]}
11... Nh6 {[%clk 0:02:56.4]} 12. g4 {[%clk 0:02:30.1]} 12... f6 {[%clk
0:02:53.4]} 13. d4 {[%clk 0:02:20.8]} 13... Nxb3 {[%clk 0:02:51.7]} 14. axb3
{[%clk 0:02:21.4]} 14... Nf7 {[%clk 0:02:43.1]} 15. Be3 {[%clk 0:02:07.4]} 15...
e6 {[%clk 0:02:38.4]} 16. exf6 {[%clk 0:01:58.6]} 16... Qxf6 {[%clk 0:02:37]}
17. Ne5 {[%clk 0:01:58.9]} 17... Qe7 {[%clk 0:02:34.1]} 18. Qe1 {[%clk
0:01:39.7]} 18... Bd7 {[%clk 0:02:33.3]} 19. Qg3 {[%clk 0:01:35.3]} 19... b6
{[%clk 0:02:33.1]} 20. Ne2 {[%clk 0:01:26.1]} 20... c5 {[%clk 0:02:31.2]} 21. c3
{[%clk 0:01:26]} 21... Bb5 {[%clk 0:02:30.9]} 22. Rf2 {[%clk 0:01:22.7]} 22...
Nd6 {[%clk 0:02:27.5]} 23. Qg2 {[%clk 0:00:55.1]} 23... Ne4 {[%clk 0:02:25.5]}
24. Rf3 {[%clk 0:00:52.4]} 24... Bxe5 {[%clk 0:02:15.1]} 25. dxe5 {[%clk
0:00:49.8]} 25... Bc6 {[%clk 0:02:08.8]} 26. Kh2 {[%clk 0:00:40.2]} 26... d4
{[%clk 0:02:08.1]} 27. cxd4 {[%clk 0:00:39.7]} 27... Ng5 {[%clk 0:02:08.1]} 28.
fxg5 {[%clk 0:00:31.6]} 28... Bxf3 {[%clk 0:02:07.6]} 29. Qf2 {[%clk 0:00:31.6]}
29... Bxg4 {[%clk 0:02:05.2]} 30. Qg2 {[%clk 0:00:28.9]} 30... Bf3 {[%clk
0:02:04.7]} 31. Qf2 {[%clk 0:00:28.5]} 31... Bxe2 {[%clk 0:02:03.6]} 32. Qxe2
{[%clk 0:00:28.5]} 32... cxd4 {[%clk 0:02:04.2]} 33. Bxd4 {[%clk 0:00:28.5]}
33... Qxg5 {[%clk 0:02:04.3]} 34. Rg1 {[%clk 0:00:26.4]} 34... Qf4+ {[%clk
0:02:04]} 0-1

[Event "*** Titled Tuesday Blitz"]
[Site "Chess.com"]
[Date "2020.04.21"]
[Round "1"]
[White "rpragchess"]
[Black "Rakesh"]
[Result "1-0"]
[WhiteElo "2749"]
[BlackElo "2390"]
[TimeControl "180+1"]
[EndTime "10:05:04 PDT"]
[Termination "rpragchess won by resignation"]

1. e4 {[%clk 0:02:59]} 1... c5 {[%clk 0:02:59.8]} 2. Nf3 {[%clk 0:02:57.6]} 2...
e6 {[%clk 0:02:56.6]} 3. g3 {[%clk 0:02:56.3]} 3... Nc6 {[%clk 0:02:54.9]} 4.
Bg2 {[%clk 0:02:55.8]} 4... g6 {[%clk 0:02:55.3]} 5. d4 {[%clk 0:02:54]} 5...
cxd4 {[%clk 0:02:55]} 6. Nxd4 {[%clk 0:02:54.9]} 6... Nge7 {[%clk 0:02:46.6]} 7.
Nb5 {[%clk 0:02:45.7]} 7... d5 {[%clk 0:02:43.5]} 8. exd5 {[%clk 0:02:41.2]}
8... exd5 {[%clk 0:02:44.4]} 9. Bf4 {[%clk 0:02:37.4]} 9... Bg7 {[%clk
0:02:24.3]} 10. Nc7+ {[%clk 0:02:22.8]} 10... Kf8 {[%clk 0:02:24.1]} 11. Nxa8
{[%clk 0:02:23.2]} 11... Bxb2 {[%clk 0:02:24]} 12. Nd2 {[%clk 0:02:23.2]} 12...
Bf5 {[%clk 0:02:16.4]} 13. Rb1 {[%clk 0:02:02.4]} 13... Bf6 {[%clk 0:02:13.8]}
14. O-O {[%clk 0:01:32.2]} 14... Qxa8 {[%clk 0:02:12.8]} 15. Bh6+ {[%clk
0:01:32.4]} 15... Bg7 {[%clk 0:02:11.6]} 16. Bxg7+ {[%clk 0:01:32.1]} 16... Kxg7
{[%clk 0:02:12.5]} 17. Nb3 {[%clk 0:01:32.8]} 17... Rd8 {[%clk 0:02:12.2]} 18.
Nd4 {[%clk 0:01:32.7]} 18... Nxd4 {[%clk 0:02:07.3]} 19. Qxd4+ {[%clk
0:01:33.6]} 19... Kg8 {[%clk 0:02:08.1]} 20. Rfe1 {[%clk 0:01:09.8]} 20... Nc6
{[%clk 0:02:07.2]} 21. Qd2 {[%clk 0:01:09.4]} 21... Qc8 {[%clk 0:02:05.6]} 22.
Rb5 {[%clk 0:01:06.2]} 22... d4 {[%clk 0:01:59.3]} 23. h4 {[%clk 0:00:59.1]}
23... a6 {[%clk 0:01:56.8]} 24. Rc5 {[%clk 0:00:56.9]} 24... Qd7 {[%clk
0:01:56.3]} 25. h5 {[%clk 0:00:53.9]} 25... gxh5 {[%clk 0:01:51.5]} 26. Rd5
{[%clk 0:00:43.5]} 26... Qc8 {[%clk 0:01:49.5]} 27. Qg5+ {[%clk 0:00:43]} 27...
Bg6 {[%clk 0:01:48.5]} 28. Rxd8+ {[%clk 0:00:42.9]} 28... Qxd8 {[%clk
0:01:46.3]} 29. Qxd8+ {[%clk 0:00:42.8]} 29... Nxd8 {[%clk 0:01:47.2]} 30. Re8+
{[%clk 0:00:43.3]} 30... Kg7 {[%clk 0:01:47.6]} 31. Rxd8 {[%clk 0:00:44.2]}
31... Bxc2 {[%clk 0:01:47.2]} 32. Rxd4 {[%clk 0:00:43.9]} 1-0

[Event "*** Titled Tuesday Blitz"]
[Site "Chess.com"]
[Date "2020.04.21"]
[Round "1"]
[White "Lagmantr"]
[Black "chess4life23"]
[Result "0-1"]
[WhiteElo "2716"]
[BlackElo "2413"]
[TimeControl "180+1"]
[EndTime "10:05:04 PDT"]
[Termination "chess4life23 won by checkmate"]

1. e4 {[%clk 0:02:59.9]} 1... c6 {[%clk 0:02:59.9]} 2. Nc3 {[%clk 0:03:00.7]}
2... d5 {[%clk 0:02:59.9]} 3. d4 {[%clk 0:03:01.6]} 3... dxe4 {[%clk 0:02:59.5]}
4. Nxe4 {[%clk 0:03:02.5]} 4... Nd7 {[%clk 0:02:59.3]} 5. Nf3 {[%clk 0:03:01.2]}
5... Ngf6 {[%clk 0:02:59.3]} 6. Nxf6+ {[%clk 0:03:00.8]} 6... Nxf6 {[%clk
0:03:00.2]} 7. Bd3 {[%clk 0:03:01.3]} 7... Bg4 {[%clk 0:02:59.7]} 8. c3 {[%clk
0:03:00]} 8... e6 {[%clk 0:02:59.2]} 9. h3 {[%clk 0:02:58.4]} 9... Bh5 {[%clk
0:02:57.3]} 10. g4 {[%clk 0:02:57]} 10... Bg6 {[%clk 0:02:56.6]} 11. Ne5 {[%clk
0:02:57]} 11... Qd5 {[%clk 0:02:42.5]} 12. Rg1 {[%clk 0:02:50.9]} 12... Bd6
{[%clk 0:02:27.1]} 13. Bf4 {[%clk 0:02:48.5]} 13... Bxd3 {[%clk 0:02:16.1]} 14.
Qxd3 {[%clk 0:02:49.4]} 14... Bxe5 {[%clk 0:02:10.3]} 15. Bxe5 {[%clk
0:02:50.3]} 15... Qe4+ {[%clk 0:02:09.9]} 16. Qxe4 {[%clk 0:02:50.3]} 16... Nxe4
{[%clk 0:02:10.8]} 17. Bxg7 {[%clk 0:02:50.7]} 17... Rg8 {[%clk 0:02:10.6]} 18.
Be5 {[%clk 0:02:50.4]} 18... f6 {[%clk 0:01:58.3]} 19. Bh2 {[%clk 0:02:50.2]}
19... h5 {[%clk 0:01:49.5]} 20. Ke2 {[%clk 0:02:47.6]} 20... O-O-O {[%clk
0:01:41]} 21. f3 {[%clk 0:02:43.8]} 21... Ng5 {[%clk 0:01:40.2]} 22. h4 {[%clk
0:02:37.4]} 22... Nh3 {[%clk 0:01:37.6]} 23. Rg3 {[%clk 0:02:35.8]} 23... Nf4+
{[%clk 0:01:30.3]} 24. Ke3 {[%clk 0:02:34.9]} 24... Ng6 {[%clk 0:01:24.4]} 25.
gxh5 {[%clk 0:02:33.5]} 25... Nxh4 {[%clk 0:01:24.4]} 26. Rh3 {[%clk 0:02:32.4]}
26... Nf5+ {[%clk 0:01:14.9]} 27. Kf2 {[%clk 0:02:32.6]} 27... e5 {[%clk
0:01:09.9]} 28. dxe5 {[%clk 0:01:58.2]} 28... Rd2+ {[%clk 0:01:09.3]} 29. Ke1
{[%clk 0:01:57.4]} 29... Rgg2 {[%clk 0:01:09.2]} 30. Bf4 {[%clk 0:01:45.9]}
30... Rde2+ {[%clk 0:01:05.3]} 31. Kd1 {[%clk 0:01:42.9]} 31... fxe5 {[%clk
0:01:03.6]} 32. h6 {[%clk 0:01:40.3]} 32... exf4 {[%clk 0:01:03.2]} 33. h7
{[%clk 0:01:39.4]} 33... Ne3+ {[%clk 0:01:03.4]} 34. Kc1 {[%clk 0:01:40]} 34...
Rg1# {[%clk 0:01:02]} 0-1